bitfinex/quotes_ETHUSD_20240618
["timestamp","ask_amount","ask_price","bid_price","bid_amount"]
[1718687150990,1.64542243,3462.7,3462.5,5.77605]
[1718687151187,1.64542243,3462.7,3462.6,11.382]
[1718687151398,1.64542243,3462.7,3462.6,14.27]
[1718687151675,1.64542243,3462.7,3462.6,15.76005456]
[1718687151889,1.64542243,3462.7,3462.6,7.92805456]
[1718687152106,1.64542243,3462.7,3462.6,10.81605456]
[1718687152581,1.64542243,3462.7,3462.6,7.92805456]
[1718687152780,1.64542243,3462.7,3462.6,3.61305456]
[1718687153074,1.64542243,3462.7,3462.6,0.61305456]
[1718687153378,1.64542243,3462.7,3462.6,0.06305456]
[1718687153776,1.64542243,3462.7,3461.7,2.88871]
[1718687153981,1.64542243,3462.7,3461.5,2.88885]
[1718687154157,1.64542243,3462.7,3461.8,2.94593629]
[1718687154357,1.64542243,3462.7,3461.6,0.74357023]
[1718687154682,1.64542243,3462.7,3461.7,0.05728365]
[1718687154917,1.64542243,3462.7,3461.3,1.08495209]
[1718687155181,1.64542243,3462.7,3461.0,2.2568]
[1718687155182,2.2921,3462.6,3461.8,0.05727629]
[1718687155354,2.2921,3462.6,3461.0,2.2568]
[1718687155355,2.2921,3462.6,3461.5,2.88887]
[1718687155547,2.2921,3462.6,3461.6,0.05776237]
[1718687155749,2.2921,3462.6,3461.6,0.11505339]
[1718687156550,2.2921,3462.6,3461.6,0.05729102]
[1718687156753,0.405679,3462.5,3461.4,2.88896]
[1718687156946,0.405679,3462.5,3461.5,0.55]
[1718687157194,0.405679,3462.5,3461.5,0.05729838]
[1718687157485,0.405679,3462.5,3461.1,2.88922]
[1718687157699,3.405679,3462.5,3461.6,0.05729102]
[1718687157901,0.43432014,3462.4,3461.2,0.55]
[1718687158069,0.43432014,3462.4,3461.7,0.05728365]
[1718687158270,0.43432014,3462.4,3461.2,3.43915]
[1718687158456,0.43432014,3462.4,3461.8,0.05727629]
[1718687158797,0.50163082,3462.3,3461.2,0.55]
[1718687158962,0.50163082,3462.3,3461.9,0.05726892]
[1718687159394,0.50163082,3462.3,3461.2,0.05777027]
[1718687159610,0.50163082,3462.3,3461.1,2.88921]
[1718687159904,0.50163082,3462.3,3461.3,0.05782415]
[1718687160089,0.50163082,3462.3,3460.0,7.43]
[1718687160090,5.7130951,3462.2,3461.2,0.05783152]
[1718687160278,5.7130951,3462.2,3460.4,2.88981]
[1718687160470,3.0,3462.1,3461.3,0.05792137]
[1718687160665,3.0,3462.1,3460.4,2.88981]
[1718687160990,0.44640404,3462.0,3460.5,1.320977]
[1718687161302,0.44640404,3462.0,3460.6,2.88965]
[1718687161466,0.44640404,3462.0,3460.5,0.05798031]
[1718687162092,0.44640404,3462.0,3459.8,2.89026]
[1718687162093,2.3078,3461.6,3459.8,2.89026]
[1718687162253,2.3078,3461.6,3460.6,0.05809539]
[1718687162451,0.50163082,3461.5,3459.8,2.89026]
[1718687162679,2.727,3461.2,3459.9,0.05621264]
[1718687162869,2.3253,3461.1,3459.2,4.048295]
[1718687163066,5.3253,3461.1,3459.3,2.94578243]
[1718687163278,5.3253,3461.1,3459.4,2.89065]
[1718687163584,5.7188951,3461.1,3459.8,2.8903]
[1718687163762,5.7188951,3461.1,3459.5,0.81221577]
[1718687163763,5.7188951,3461.1,3459.5,0.75442142]
[1718687163959,5.7188951,3461.1,3459.9,0.05499819]
[1718687164164,5.7188951,3461.1,3459.6,0.05502031]
[1718687164358,5.7188951,3461.1,3459.4,2.89065]
[1718687164698,5.7188951,3461.1,3459.5,0.05502768]
[1718687165058,5.7188951,3461.1,3459.2,1.157505]
[1718687165279,0.44640404,3461.0,3459.3,0.05504243]
[1718687165485,0.44640404,3461.0,3459.3,0.60504243]
[1718687166316,0.44640404,3461.0,3459.4,0.05779828]
[1718687166475,0.44640404,3461.0,3459.3,0.05504243]
[1718687166677,2.2996,3460.6,3458.3,2.89156]
[1718687166973,2.2996,3460.6,3458.1,7.43]
[1718687166974,3.0,3460.4,3458.5,0.05510143]
[1718687167197,3.0,3460.4,3458.4,2.89149]
[1718687167198,2.727,3460.2,3458.4,2.89149]
[1718687167421,0.3935951,3460.2,3458.5,3.58262256]
[1718687167626,0.3935951,3460.2,3458.5,0.69122256]
[1718687167910,0.3935951,3460.2,3458.6,0.05781383]
[1718687168081,0.3935951,3460.2,3458.7,2.89125]
[1718687168279,3.0,3460.3,3458.8,0.11288706]
[1718687168773,2.4722,3460.2,3458.8,0.0550793]
[1718687168978,5.1992,3460.2,3458.5,0.578307]
[1718687169284,5.1992,3460.2,3458.6,0.05509406]
[1718687169285,3.0,3460.1,3458.6,0.05509406]
[1718687169496,3.0,3460.1,3458.6,0.11290961]
[1718687169700,3.0,3460.1,3458.7,0.0578074]
[1718687169900,3.0,3460.1,3458.7,0.41607725]
[1718687170101,3.0,3460.1,3458.8,0.1128902]
[1718687170304,3.0,3460.1,3458.8,0.0550793]
[1718687170811,3.0,3460.1,3458.9,0.05781216]
[1718687171019,3.0,3460.1,3459.0,0.05506455]
[1718687171205,0.81992,3460.0,3458.7,0.35826985]
[1718687171526,3.0,3460.1,3458.8,0.11289147]
[1718687171676,2.4722,3460.2,3459.2,2.89078]
[1718687171876,2.4722,3460.2,3459.3,0.11284603]
[1718687172077,2.4722,3460.2,3459.3,0.05504243]
[1718687172282,2.4722,3460.2,3458.8,2.89112]
[1718687172491,2.4722,3460.2,3458.9,0.98781643]
[1718687172716,2.4722,3460.2,3458.9,3.87885643]
[1718687173221,2.4722,3460.2,3458.9,0.98781643]
[1718687173735,2.4722,3460.2,3458.9,0.93001092]
[1718687174601,2.4722,3460.2,3458.9,3.82109092]
[1718687174799,2.4722,3460.2,3459.0,0.47574158]
[1718687175020,2.4722,3460.2,3459.1,0.05611127]
[1718687175229,2.4722,3460.2,3459.2,0.0578055]
[1718687175550,2.4722,3460.2,3459.3,0.11390202]
[1718687175906,2.4722,3460.2,3459.4,2.89066]
[1718687176149,2.4722,3460.2,3459.5,0.64733713]
[1718687176447,2.4722,3460.2,3459.5,0.7034225]
[1718687178031,2.4654,3461.4,3459.6,0.05779927]
[1718687178219,2.4654,3461.4,3460.2,2.88999]
[1718687178427,2.4654,3461.4,3460.3,0.69172213]
[1718687178948,2.4654,3461.4,3460.3,0.63393683]
[1718687179107,2.4654,3461.4,3460.4,2.94761194]
[1718687179437,2.4654,3461.4,3460.5,2.94553575]
[1718687179627,2.4654,3461.4,3460.6,0.05778193]
[1718687179826,2.4654,3461.4,3460.7,0.35611278]
[1718687180049,2.4654,3461.4,3460.7,0.05578101]
[1718687180228,2.4654,3461.4,3460.3,0.578004]
[1718687180540,2.4654,3461.4,3460.5,2.88974]
[1718687180729,2.2568,3462.0,3460.6,0.05778163]
[1718687180932,2.2568,3462.0,3460.6,0.11357001]
[1718687181237,5.55862651,3462.0,3460.7,0.300331]
[1718687181566,5.55862651,3462.0,3460.8,0.11355527]
[1718687181924,5.55862651,3462.0,3460.3,0.578004]
[1718687181925,2.09989307,3461.9,3460.3,0.578004]
[1718687182274,3.0,3461.9,3460.4,3.00339947]
[1718687182426,3.0,3461.9,3460.4,0.05580311]
[1718687182626,3.0,3461.9,3460.5,0.05778338]
[1718687182822,3.0,3461.9,3460.6,0.05578838]
[1718687183026,3.0,3461.9,3460.7,0.05778335]
[1718687183258,3.0,3461.9,3460.8,0.05577364]
[1718687183464,3.0,3461.9,3460.7,0.05778335]
[1718687183664,3.0,3461.9,3460.8,0.05577364]
[1718687184262,3.0,3461.9,3460.0,5.89016]
[1718687184432,2.3132,3461.5,3460.1,0.05542946]
[1718687184764,5.3132,3461.5,3459.9,4.446395]
[1718687184966,5.3132,3461.5,3460.2,0.05527459]
[1718687185178,2.3537,3461.4,3460.5,5.0]
[1718687185465,2.3845,3461.0,3460.6,0.05524511]
[1718687185660,2.3845,3461.0,3460.5,5.0]
[1718687188083,5.3845,3461.0,3460.5,5.0]
[1718687188382,5.0724,3460.6,3460.5,1.31983133]
[1718687188575,10.17281065,3460.6,3460.5,1.31983133]
[1718687189370,10.17281065,3460.6,3458.4,10.32149]
[1718687189371,13.77281065,3460.6,3458.4,10.32149]
[1718687189684,13.77281065,3460.6,3458.5,0.05328141]
[1718687189685,5.60040359,3460.5,3458.5,0.05328141]
[1718687189846,2.53617866,3460.4,3458.5,0.52925614]
[1718687190051,5.10041065,3460.3,3458.6,0.05150887]
[1718687190277,3.0,3460.3,3458.6,0.05150887]
[1718687190480,2.10089605,3460.2,3458.7,0.05781469]
[1718687190643,3.0,3460.3,3458.8,0.05149412]
[1718687190846,0.7485761,3460.2,3458.8,0.05149412]
[1718687191090,0.7485761,3460.2,3458.5,0.52925614]
[1718687191289,0.7485761,3460.2,3458.6,0.10932355]
[1718687191588,3.0,3460.3,3458.7,2.89124]
[1718687191757,3.0,3460.3,3458.8,0.05780893]
[1718687191951,3.0,3460.3,3458.8,0.05149412]
[1718687192288,2.4226,3460.2,3458.8,0.05149412]
[1718687192473,2.727,3460.0,3458.1,2.89172]
[1718687192687,3.56996,3459.9,3458.3,0.63179455]
[1718687192999,3.56996,3459.9,3458.5,2.89141]
[1718687193185,3.56996,3459.9,3458.3,0.63179455]
[1718687193186,3.56996,3459.9,3458.3,0.57397499]
[1718687193365,3.56996,3459.9,3458.6,0.04981085]
[1718687193569,3.56996,3459.9,3458.4,0.04982561]
[1718687193805,0.629696,3459.8,3458.7,0.04980348]
[1718687193996,0.629696,3459.8,3458.5,0.34198499]
[1718687194204,0.629696,3459.8,3458.8,0.0497961]
[1718687194427,0.629696,3459.8,3458.6,0.10762556]
[1718687194706,3.0,3459.9,3458.7,0.04980348]
[1718687195780,3.0,3459.9,3458.7,0.10762104]
[1718687196081,2.4702,3459.8,3458.7,0.04980348]
[1718687196280,2.4702,3459.8,3457.6,2.3995]
[1718687196522,2.4702,3459.8,3457.6,5.815812]
[1718687196679,2.4702,3459.8,3458.1,0.04984774]
[1718687197482,2.727,3459.5,3458.1,0.04984774]
[1718687197676,5.4702,3459.4,3458.1,0.04984774]
[1718687198521,2.10143455,3459.3,3457.5,2.89224]
[1718687198882,2.10143455,3459.3,3458.1,0.05050291]
[1718687199087,2.10143455,3459.3,3457.5,2.89224]
[1718687199489,2.10143455,3459.3,3458.1,0.05050291]
[1718687199690,2.727,3459.0,3456.8,15.01284]
[1718687199908,2.10143455,3458.9,3457.0,0.0578348]
[1718687200131,0.48284346,3458.8,3457.0,0.0578348]
[1718687200944,0.48284346,3458.8,3457.0,2.89267]
[1718687201097,2.3801,3458.6,3456.9,10.32275]
[1718687201717,2.10170677,3458.5,3456.9,7.43]
[1718687202107,5.10170677,3458.5,3456.9,7.43]
[1718687202435,2.10170677,3458.4,3456.9,7.43]
[1718687202605,0.8587865,3458.3,3457.0,0.05784537]
[1718687202811,2.10170677,3458.2,3457.0,0.05784537]
[1718687203852,2.10170677,3458.2,3456.6,2.3995]
[1718687205540,2.10170677,3458.2,3456.6,5.29243]
[1718687205708,2.10170677,3458.2,3456.8,2.89283]
[1718687206325,0.8587865,3458.3,3456.8,2.89283]
[1718687207039,2.727,3459.2,3456.9,2.95051896]
[1718687207242,2.727,3459.2,3457.4,2.3612]
[1718687207243,5.1017985,3458.9,3457.4,2.3612]
[1718687207446,2.1017985,3458.8,3457.5,0.05783509]
[1718687207659,2.1017985,3458.7,3457.5,0.05783509]
[1718687207820,3.0,3459.0,3457.5,0.05783509]
[1718687208149,2.97101446,3458.9,3457.5,0.05783509]
[1718687208335,5.10162165,3458.8,3457.5,0.05783509]
[1718687208517,2.10162165,3458.7,3457.5,0.05783509]
[1718687209025,2.10162165,3458.7,3457.0,5.25386]
[1718687209543,2.10162165,3458.7,3457.0,2.3612]
[1718687209748,2.10162165,3458.7,3457.1,0.05783882]
[1718687211561,2.10162165,3458.7,3457.1,0.05783881]
[1718687211760,2.10162165,3458.7,3457.1,2.95042881]
[1718687213540,4.15162165,3458.7,3457.1,2.89259]
[1718687213878,0.47223715,3458.6,3457.1,2.89259]
[1718687214238,0.47223715,3458.6,3457.2,0.05783306]
[1718687216595,0.52023723,3458.6,3457.1,2.89259]
[1718687216767,0.04800008,3458.6,3457.3,0.0578331]
[1718687217112,0.04800008,3458.6,3457.4,0.05035256]
[1718687217274,0.04800008,3458.6,3457.5,0.05783312]
[1718687217600,0.04800008,3458.6,3457.6,0.05033779]
[1718687217798,0.04800008,3458.6,3457.7,0.05783312]
[1718687218101,0.04800008,3458.6,3457.8,0.10815615]
[1718687218303,0.04800008,3458.6,3457.8,0.05032303]
[1718687218462,0.04800008,3458.6,3457.8,2.41022303]
[1718687218667,2.05,3458.7,3457.9,0.2410223]
[1718687219071,0.04800008,3458.6,3457.9,0.2410223]
[1718687219379,0.04800008,3458.6,3458.0,0.05030827]
[1718687219893,0.04800008,3458.6,3457.4,2.4266]
[1718687220063,0.04800008,3458.6,3457.5,0.05034518]
[1718687220268,0.04800008,3458.6,3457.5,0.2980397]
[1718687220799,2.05,3458.3,3457.5,0.05034518]
[1718687221004,0.04800008,3458.2,3457.5,0.05034518]
[1718687221208,0.04800008,3458.2,3456.9,2.2923]
[1718687221371,2.05,3457.9,3456.3,2.2923]
[1718687221577,0.04800008,3457.8,3457.0,0.05038209]
[1718687221784,0.04800008,3457.8,3456.4,0.518564]
[1718687221975,0.04800008,3457.8,3457.1,0.05037471]
[1718687222174,0.04800008,3457.8,3456.4,0.518564]
[1718687222611,0.04800008,3457.8,3456.5,0.05041901]
[1718687222805,0.04800008,3457.8,3456.6,0.2861283]
[1718687223103,0.04800008,3457.8,3456.7,0.05040424]
[1718687225233,0.04800008,3457.8,3456.8,0.05784762]
[1718687225553,0.04800008,3457.8,3456.7,0.05040424]
[1718687225737,0.04800008,3457.8,3456.9,0.05054066]
[1718687225902,0.27878009,3457.8,3456.6,0.2861283]
[1718687226099,0.04800008,3457.7,3456.7,0.05055543]
[1718687227419,2.4618,3458.3,3457.0,2.2818]
[1718687227734,7.73108296,3458.5,3457.1,0.10836436]
[1718687227735,3.0,3458.4,3457.1,0.10836436]
[1718687228037,3.0,3458.4,3457.2,0.23901644]
[1718687228038,0.04800008,3458.3,3457.2,0.23901644]
[1718687228206,0.04800008,3458.3,3457.3,0.05783847]
[1718687228406,0.50043691,3458.4,3457.3,0.05783847]
[1718687228607,7.43,3458.5,3457.4,0.05068011]
[1718687228809,7.43,3458.5,3457.5,0.05783566]
[1718687229208,0.50043691,3458.8,3457.8,2.892]
[1718687229401,7.43,3459.2,3458.0,2.89178]
[1718687229402,0.50043691,3459.2,3458.0,2.89178]
[1718687229634,7.43,3459.7,3458.1,2.94956651]
[1718687229635,0.04800008,3459.6,3458.1,2.94956651]
[1718687229940,0.04800008,3459.6,3457.9,3.45906882]
[1718687229941,0.04800008,3459.6,3458.2,5.94331668]
[1718687230447,2.3814,3459.8,3458.3,2.94937294]
[1718687230607,2.05,3460.1,3458.4,0.88926896]
[1718687230809,2.05,3460.1,3458.4,0.93957295]
[1718687231007,0.04800008,3460.0,3458.4,0.93957295]
[1718687234572,5.05,3460.1,3458.4,0.93957295]
[1718687234573,2.05,3459.3,3458.4,0.05030399]
[1718687234850,2.05,3458.9,3458.4,0.05030399]
[1718687235029,0.04800008,3458.8,3457.7,2.491]
[1718687235232,0.25300008,3458.8,3457.7,2.7401]
[1718687235437,0.04800008,3458.7,3457.7,2.7401]
[1718687235635,0.04800008,3458.7,3457.8,0.04783757]
[1718687236975,0.04800008,3458.7,3457.2,2.73001644]
[1718687237258,2.05,3458.5,3457.9,0.04783019]
[1718687237421,0.04800008,3458.4,3457.2,2.491]
[1718687237624,0.04800008,3458.4,3457.3,0.05784177]
[1718687237842,0.60379609,3458.4,3457.3,0.10413]
[1718687238146,0.60379609,3458.4,3457.3,0.05784177]
[1718687239372,0.60379609,3458.4,3456.3,5.05]
[1718687239373,2.05,3457.4,3456.7,2.3294]
[1718687239676,3.0,3457.9,3456.8,0.104178]
[1718687239829,3.28154008,3457.9,3456.8,0.3475358]
[1718687240034,3.0,3457.8,3456.8,0.30121065]
[1718687240234,0.04800008,3457.7,3456.8,0.30121065]
[1718687240767,0.04800008,3457.7,3456.9,0.04631777]
[1718687241143,0.23354,3457.9,3456.9,0.26769284]
[1718687241344,0.28154008,3457.9,3457.0,0.057848]
[1718687242236,0.04800008,3457.9,3457.0,0.057848]
[1718687242468,0.04800008,3457.9,3457.1,0.046303]
[1718687242673,0.04800008,3457.9,3457.0,0.057848]
[1718687244171,3.0,3458.1,3457.0,0.057848]
[1718687244344,0.04800008,3458.1,3457.0,0.057848]
[1718687244676,0.04800008,3458.1,3457.1,0.046303]
[1718687244849,0.04800008,3458.3,3457.2,0.05784151]
[1718687245050,0.04800008,3458.3,3457.1,0.046303]
[1718687245358,0.04800008,3458.3,3456.9,0.26769284]
[1718687246299,0.04800008,3458.3,3457.0,0.0578418]
[1718687246974,0.04800008,3458.3,3456.9,0.26769284]
[1718687247187,0.04800008,3458.3,3457.0,0.04684941]
[1718687247391,0.04800008,3458.3,3457.0,0.10469124]
[1718687247560,0.04800008,3458.3,3456.9,0.26769284]
[1718687247759,0.04800008,3458.3,3457.0,0.04684941]
[1718687248080,0.04800008,3458.3,3456.9,0.26769284]
[1718687251380,0.50049887,3458.8,3457.0,5.20209443]
[1718687251687,0.04800008,3458.7,3457.2,2.2516]
[1718687252086,2.05,3459.1,3457.2,2.2516]
[1718687252087,0.04800008,3459.0,3457.3,0.10518479]
[1718687252843,0.04800008,3459.0,3457.3,0.04735191]
[1718687253701,2.05,3458.7,3457.3,0.04735191]
[1718687253902,2.61760008,3458.6,3457.3,0.04735191]
[1718687254241,2.61760008,3458.6,3457.2,2.2516]
[1718687254443,2.61760008,3458.6,3457.4,0.04734452]
[1718687255366,0.25300008,3458.6,3457.5,0.0578398]
[1718687255544,0.04800008,3458.5,3457.6,0.04732976]
[1718687255743,2.6,3458.9,3457.6,0.04732976]
[1718687255744,0.04800008,3458.8,3457.6,0.04732976]
[1718687255981,0.04800008,3458.8,3457.5,0.0578398]
[1718687255982,3.04800008,3458.8,3457.5,0.0578398]
[1718687256188,0.04800008,3458.7,3457.6,0.04732976]
[1718687256523,0.04800008,3458.7,3457.4,0.0578363]
[1718687256698,0.66284461,3458.7,3457.7,0.04732238]
[1718687256992,0.66284461,3458.7,3457.8,0.047315]
[1718687257187,0.66284461,3458.7,3457.8,0.10514843]
[1718687257398,0.66284461,3458.7,3457.8,0.047315]
[1718687257549,0.57128446,3458.6,3457.4,0.05783357]
[1718687257896,0.04800008,3458.6,3457.5,0.04719694]
[1718687258097,0.04800008,3458.6,3457.6,0.05783401]
[1718687258390,0.04800008,3458.6,3457.7,0.04718218]
[1718687258601,0.04800008,3458.8,3457.8,0.0578348]
[1718687258759,0.04800008,3458.8,3457.9,0.04716742]
[1718687258961,0.5004452,3459.0,3457.6,5.24437]
[1718687259146,10.43,3459.5,3457.6,5.24437]
[1718687259147,0.04800008,3459.2,3457.9,2.89192]
[1718687259352,0.04800008,3459.3,3458.0,2.99681197]
[1718687259548,0.04800008,3459.4,3458.1,2.2761]
[1718687259767,0.04800008,3459.4,3458.2,0.10496459]
[1718687260731,2.5504452,3460.0,3458.5,2.89139]
[1718687261026,0.04800008,3459.9,3458.6,0.91661613]
[1718687261590,0.50024286,3460.3,3458.6,3.80794613]
[1718687261837,0.04800008,3460.2,3458.7,2.3728]
[1718687262123,0.04800008,3460.3,3458.9,2.89103]
[1718687262322,0.54820102,3460.3,3459.0,0.05780546]
[1718687262531,1.1750513,3460.3,3459.1,0.29959365]
[1718687262676,1.1750513,3460.3,3459.2,0.05780547]
[1718687262902,1.1750513,3460.3,3459.2,0.10487699]
[1718687263101,4.1750513,3460.3,3459.2,0.10487699]
[1718687263848,1.1750513,3460.3,3459.2,0.10487699]
[1718687264059,0.46550521,3460.2,3459.2,0.04707152]
[1718687264421,0.46550521,3460.2,3458.8,2.89116]
[1718687264614,0.46550521,3460.2,3459.3,0.04706414]
[1718687264933,0.46550521,3460.2,3459.4,0.04705677]
[1718687265132,0.46550521,3460.2,3458.8,2.94896549]
[1718687265336,0.46550521,3460.2,3458.9,0.66043888]
[1718687265653,2.3264,3460.0,3458.9,0.04709364]
[1718687265816,0.04800008,3459.9,3458.9,0.04709364]
[1718687266142,0.04800008,3459.9,3458.2,7.43]
[1718687266143,0.04800008,3459.9,3458.3,2.3728]
[1718687266548,0.04800008,3459.9,3458.4,0.04557761]
[1718687266753,0.92412483,3459.8,3458.4,0.28741537]
[1718687266908,0.04800008,3459.7,3458.4,0.28741537]
[1718687267307,0.04800008,3459.7,3458.4,0.04557761]
[1718687267308,2.05,3459.6,3458.4,0.04557761]
[1718687267556,0.04800008,3459.5,3458.4,0.04557761]
[1718687269439,0.04800008,3459.5,3458.5,0.05782172]
[1718687269938,0.04800008,3459.5,3458.6,0.04464298]
[1718687270321,0.04800008,3459.5,3458.7,0.05781675]
[1718687270519,0.04800008,3459.7,3458.8,0.04458872]
[1718687270731,0.41750513,3459.6,3458.8,0.04458872]
[1718687270935,0.46550521,3459.6,3458.8,0.05781677]
[1718687271141,0.46550521,3459.6,3458.4,0.05781669]
[1718687271457,0.50020094,3459.9,3458.7,2.89125]
[1718687271746,7.43,3460.2,3458.8,0.1023451]
[1718687271747,3.04800008,3460.1,3458.8,0.1023451]
[1718687271960,0.04800008,3460.1,3458.8,0.1023451]
[1718687272744,7.43,3460.2,3458.8,0.1023451]
[1718687273047,7.43,3460.2,3458.9,3.19043951]
[1718687273436,0.04800008,3460.1,3459.0,0.04452009]
[1718687273635,3.04800008,3460.1,3459.0,0.04452009]
[1718687273838,0.04800008,3460.1,3459.0,0.04452009]
[1718687274014,3.04800008,3460.3,3459.1,2.52650562]
[1718687274215,3.04800008,3460.3,3459.2,0.57614652]
[1718687274417,3.04800008,3460.3,3459.3,0.10230356]
[1718687274837,1.32406575,3460.5,3459.3,0.10230356]
[1718687275038,1.32406575,3460.5,3459.3,2.99304356]
[1718687275613,1.32406575,3460.5,3459.4,2.89066]
[1718687275844,1.32406575,3460.5,3459.5,0.40118595]
[1718687277254,1.32406575,3460.5,3459.6,0.05779741]
[1718687277654,1.32406575,3460.5,3459.7,0.04408788]
[1718687278068,1.32406575,3460.5,3459.5,0.35691101]
[1718687278354,1.32406575,3460.5,3459.8,0.04408051]
[1718687278672,1.32406575,3460.5,3459.5,0.35691101]
[1718687278871,0.04800008,3460.4,3459.9,0.04407314]
[1718687279185,0.04800008,3460.4,3459.2,0.57614652]
[1718687279338,0.04800008,3460.4,3459.3,0.04373318]
[1718687279974,2.3268,3460.3,3459.3,0.04373318]
[1718687280279,0.04800008,3460.2,3458.9,0.29935951]
[1718687280483,0.41308665,3460.2,3459.4,0.0437258]
[1718687280773,0.41308665,3460.2,3458.9,0.29935951]
[1718687280959,0.41308665,3460.2,3459.0,0.0437553]
[1718687281134,0.41308665,3460.2,3459.0,0.61570378]
[1718687281737,0.41308665,3460.2,3459.1,0.0578083]
[1718687281932,0.04800008,3460.2,3459.2,0.04374055]
[1718687282170,0.04800008,3460.2,3459.3,0.05780602]
[1718687282496,0.04800008,3460.2,3459.4,0.0437258]
[1718687282778,0.04800008,3460.2,3459.4,0.10153184]
[1718687284237,0.04800008,3460.2,3459.4,0.0437258]
[1718687284674,0.04800008,3460.2,3459.1,0.05780573]
[1718687284874,0.04800008,3460.2,3459.5,0.04371843]
[1718687285181,0.04800008,3460.2,3459.6,0.04371106]
[1718687285657,0.04800008,3460.2,3459.2,0.38200937]
[1718687285851,0.04800008,3460.2,3459.7,0.04370368]
[1718687286057,0.04800008,3460.2,3459.2,0.38200937]
[1718687286477,0.04800008,3460.2,3459.3,0.04373318]
[1718687286677,0.04800008,3460.2,3459.3,0.10153898]
[1718687287967,2.3268,3460.3,3459.3,0.10153898]
[1718687288182,0.50017874,3460.7,3459.3,0.10153898]
[1718687288345,0.04800008,3460.6,3459.4,0.33743783]
[1718687288540,3.0,3460.7,3459.5,0.05780059]
[1718687288751,3.0,3460.7,3459.6,0.04371106]
[1718687288967,3.0,3460.7,3459.7,0.05779732]
[1718687289174,3.0,3460.7,3459.8,0.10149364]
[1718687289740,4.3203,3460.8,3459.8,0.05779733]
[1718687289942,0.50017874,3461.1,3459.9,0.04368894]
[1718687290145,3.17637008,3461.0,3460.0,0.05779437]
[1718687290348,0.04800008,3461.0,3460.1,0.04372806]
[1718687290680,2.85157874,3461.3,3460.2,0.05779437]
[1718687290681,0.04800008,3461.2,3460.2,0.05779437]
[1718687291177,2.10014457,3461.1,3460.3,0.04371332]
[1718687291479,0.04800008,3461.0,3460.3,0.04371332]
[1718687291643,0.04800008,3461.2,3460.3,0.04371332]
[1718687291839,0.04800008,3461.2,3460.0,0.05779156]
[1718687292044,0.04800008,3461.2,3460.4,0.04370595]
[1718687292279,0.04800008,3461.2,3460.1,0.32472322]
[1718687292441,0.04800008,3461.2,3460.5,0.04369858]
[1718687292643,0.04800008,3461.2,3460.3,0.05779076]
[1718687292883,0.04800008,3461.2,3460.6,0.04369121]
[1718687293078,0.04800008,3461.2,3460.3,0.05779076]
[1718687293079,0.6678299,3461.1,3460.3,0.05779076]
[1718687293283,3.04800008,3461.2,3460.7,0.04368384]
[1718687293447,0.04800008,3461.2,3460.3,0.05779076]
[1718687294163,3.0,3461.3,3460.4,0.04370595]
[1718687294359,1.2788989,3461.4,3460.5,0.05778728]
[1718687294698,2.14799937,3461.3,3460.5,0.10148586]
[1718687294857,0.04800008,3461.3,3460.5,0.10148586]
[1718687295494,2.10002196,3461.2,3460.5,0.04369858]
[1718687295792,2.10002196,3461.2,3460.1,3.21480322]
[1718687295793,3.0,3461.3,3460.3,0.05778686]
[1718687295995,1.2788989,3461.4,3460.6,0.04369121]
[1718687296198,3.0,3461.7,3460.4,0.05778689]
[1718687296499,2.14799239,3461.6,3460.7,0.04368384]
[1718687296696,2.09999231,3461.5,3460.5,0.04369858]
[1718687296881,0.04800008,3461.4,3460.5,0.0577869]
[1718687297085,2.09999231,3461.3,3460.6,0.04369121]
[1718687297567,2.09999231,3461.2,3460.2,2.88994]
[1718687297910,3.0,3461.7,3460.7,0.04368384]
[1718687298198,2.1479354,3461.6,3460.8,0.04367648]
[1718687298364,2.09993532,3461.5,3460.3,0.61046732]
[1718687298561,2.09993532,3461.5,3460.9,0.04366911]
[1718687298789,2.93553804,3462.2,3460.6,5.26633]
[1718687298963,2.14768212,3462.1,3461.0,0.04343562]
[1718687299162,2.09968204,3462.0,3460.8,0.05777545]
[1718687299398,0.04800008,3461.9,3461.1,0.0433242]
[1718687299604,2.14760309,3462.1,3461.1,0.05777545]
[1718687299923,2.09960301,3462.0,3461.2,0.04330607]
[1718687300114,0.50631039,3461.9,3461.2,0.04330607]
[1718687300298,2.09960301,3461.8,3461.2,0.04330607]
[1718687300611,2.09960301,3461.8,3460.7,3.42199119]
[1718687300781,2.09960301,3461.8,3461.3,0.04323054]
[1718687300979,2.09960301,3461.8,3460.7,3.42199119]
[1718687301279,2.09960301,3461.8,3461.4,0.04322317]
[1718687301470,2.09960301,3461.8,3460.7,3.42199119]
[1718687302027,2.09960301,3461.8,3460.8,0.04326737]
[1718687302622,2.09960301,3461.8,3460.9,0.05777554]
[1718687302784,2.09960301,3461.8,3460.9,0.1006229]
[1718687302991,2.0921019,3463.0,3461.0,2.2799]
[1718687302992,10.42063804,3462.6,3461.0,2.2799]
[1718687303213,2.14741,3462.5,3461.2,2.88915]
[1718687303510,2.99063804,3462.6,3461.3,0.05776905]
[1718687303511,2.14741,3462.4,3461.3,0.05776905]
[1718687303692,2.09940992,3462.3,3461.3,0.04276767]
[1718687304015,0.98053281,3462.5,3461.1,2.88918]
[1718687304333,0.98053281,3462.5,3461.4,0.04276031]
[1718687304334,5.14730249,3462.4,3461.4,0.04276031]
[1718687304538,5.14730249,3462.4,3461.2,0.04277504]
[1718687304539,2.46039956,3462.3,3461.2,0.04277504]
[1718687304681,2.05,3461.9,3461.5,0.04270631]
[1718687304883,2.05,3461.9,3460.6,2.4177]
[1718687304884,2.09930241,3461.8,3460.6,2.4177]
[1718687305105,0.46293032,3461.7,3460.6,2.4177]
[1718687305299,2.09930241,3461.6,3460.7,0.04276524]
[1718687307019,0.04800008,3461.5,3460.7,0.04276524]
[1718687307216,2.09930241,3461.4,3460.7,0.04276524]
[1718687307621,2.09930241,3461.3,3460.7,0.04276524]
[1718687307787,0.41493024,3461.7,3460.7,0.04276524]
[1718687307986,2.6208976,3461.6,3460.7,0.04276524]
[1718687308188,2.0999045,3461.5,3460.7,0.04276524]
[1718687308399,0.04800008,3461.4,3460.7,0.04276524]
[1718687308695,2.0999045,3461.3,3460.7,0.04276524]
[1718687308891,0.47299302,3461.6,3460.7,0.04276524]
[1718687309117,2.14778351,3461.5,3460.7,0.04276524]
[1718687309314,2.09978343,3461.4,3460.7,0.04276524]
[1718687309695,0.47299302,3461.6,3460.7,0.04276524]
[1718687310027,2.14782426,3461.5,3460.7,0.04276524]
[1718687310227,2.09982418,3461.4,3460.7,0.04276524]
[1718687310591,0.47299302,3461.6,3460.7,0.04276524]